Workbook

Sheet sheet1
A1: 附件：
A2: 2024年黔西南州兴义市“特岗计划”教师招聘总成绩及进入体检人员名单
A3: 序号 | B3: 报考学段 | C3: 报考学科 | D3: 报考小学语文、小学数学、小学心理健康教师岗位代码 | E3: 笔试成绩 | F3: 面试准考证号 | G3: 面试成绩 | H3: 总成绩 | I3: 是否进入体检
A4: 1 | B4: 初中 | C4: 语文 | E4: 78.5 | F4: 1001 | G4: 85.93 | H4: =ROUND((E4*0.5+G4*0.5),2) -> 82.22 | I4: 是
A5: 2 | B5: 初中 | C5: 语文 | E5: 78.5 | F5: 1002 | G5: 84.83 | H5: 81.67 | I5: 是
A6: 3 | B6: 初中 | C6: 语文 | E6: 77.5 | F6: 1003 | G6: 83.23 | H6: 80.37 | I6: 是
A7: 4 | B7: 初中 | C7: 语文 | E7: 75 | F7: 1004 | G7: 85.20 | H7: 80.10 | I7: 是
A8: 5 | B8: 初中 | C8: 语文 | E8: 74 | F8: 1005 | G8: 84.20 | H8: 79.10 | I8: 是
A9: 6 | B9: 初中 | C9: 语文 | E9: 74 | F9: 1006 | G9: 82.60 | H9: 78.30
A10: 7 | B10: 初中 | C10: 语文 | E10: 73 | F10: 1007 | G10: 82.20 | H10: 77.60
A11: 8 | B11: 初中 | C11: 语文 | E11: 73 | F11: 1008 | G11: 80.93 | H11: 76.97
A12: 9 | B12: 初中 | C12: 语文 | E12: 72 | F12: 1009 | G12: 83.13 | H12: 77.57
A13: 10 | B13: 初中 | C13: 语文 | E13: 72 | F13: 1010 | G13: 82.60 | H13: 77.30
A14: 11 | B14: 初中 | C14: 语文 | E14: 71.5 | F14: 1011 | G14: 缺考 | H14: =ROUND((E14*0.5),2) -> 35.75
A15: 12 | B15: 初中 | C15: 语文 | E15: 71 | F15: 1012 | G15: 83.27 | H15: =ROUND((E15*0.5+G15*0.5),2) -> 77.14
A16: 13 | B16: 初中 | C16: 语文 | E16: 71 | F16: 1013 | G16: 82.40 | H16: =ROUND((E16*0.5+G16*0.5),2) -> 76.70
A17: 14 | B17: 初中 | C17: 语文 | E17: 70 | F17: 1014 | G17: 85.27 | H17: =ROUND((E17*0.5+G17*0.5),2) -> 77.64
A18: 15 | B18: 初中 | C18: 语文 | E18: 70 | F18: 1015 | G18: 84.10 | H18: =ROUND((E18*0.5+G18*0.5),2) -> 77.05
A19: 16 | B19: 初中 | C19: 语文 | E19: 70 | F19: 1016 | G19: 缺考 | H19: =ROUND((E19*0.5),2) -> 35.00
A20: 17 | B20: 初中 | C20: 语文 | E20: 69 | F20: 1017 | G20: 87.13 | H20: =ROUND((E20*0.5+G20*0.5),2) -> 78.07
A21: 18 | B21: 初中 | C21: 语文 | E21: 68.5 | F21: 1018 | G21: 89.43 | H21: 78.97 | I21: 是
A22: 19 | B22: 初中 | C22: 数学 | E22: 84.5 | F22: 1019 | G22: 79.00 | H22: 81.75 | I22: 是
A23: 20 | B23: 初中 | C23: 数学 | E23: 82 | F23: 1020 | G23: 83.47 | H23: 82.74 | I23: 是
A24: 21 | B24: 初中 | C24: 数学 | E24: 81 | F24: 1021 | G24: 80.07 | H24: 80.54 | I24: 是
A25: 22 | B25: 初中 | C25: 数学 | E25: 80 | F25: 1022 | G25: 82.97 | H25: 81.49 | I25: 是
A26: 23 | B26: 初中 | C26: 数学 | E26: 77.5 | F26: 1023 | G26: 75.60 | H26: 76.55
A27: 24 | B27: 初中 | C27: 数学 | E27: 77.5 | F27: 1024 | G27: 82.93 | H27: 80.22 | I27: 是
A28: 25 | B28: 初中 | C28: 数学 | E28: 75 | F28: 1025 | G28: 84.60 | H28: 79.80
A29: 26 | B29: 初中 | C29: 数学 | E29: 73.5 | F29: 1026 | G29: 80.93 | H29: 77.22
A30: 27 | B30: 初中 | C30: 数学 | E30: 73.5 | F30: 1027 | G30: 80.43 | H30: 76.97
A31: 28 | B31: 初中 | C31: 数学 | E31: 72.5 | F31: 1028 | G31: 78.37 | H31: 75.44
A32: 29 | B32: 初中 | C32: 数学 | E32: 72 | F32: 1029 | G32: 81.13 | H32: 76.57
A33: 30 | B33: 初中 | C33: 数学 | E33: 71.5 | F33: 1030 | G33: 87.07 | H33: 79.29
A34: 31 | B34: 初中 | C34: 数学 | E34: 70.5 | F34: 1031 | G34: 82.00 | H34: 76.25
A35: 32 | B35: 初中 | C35: 数学 | E35: 70.5 | F35: 1032 | G35: 缺考 | H35: =ROUND((E35*0.5),2) -> 35.25
A36: 33 | B36: 初中 | C36: 数学 | E36: 70 | F36: 1033 | G36: 缺考 | H36: =ROUND((E36*0.5),2) -> 35.00
A37: 34 | B37: 初中 | C37: 英语 | E37: 91 | F37: 1034 | G37: 81.50 | H37: =ROUND((E37*0.5+G37*0.5),2) -> 86.25 | I37: 是
A38: 35 | B38: 初中 | C38: 英语 | E38: 90 | F38: 1035 | G38: 82.33 | H38: 86.17 | I38: 是
A39: 36 | B39: 初中 | C39: 英语 | E39: 90 | F39: 1036 | G39: 86.33 | H39: 88.17 | I39: 是
A40: 37 | B40: 初中 | C40: 英语 | E40: 88.5 | F40: 1037 | G40: 85.67 | H40: 87.09 | I40: 是
A41: 38 | B41: 初中 | C41: 英语 | E41: 87.5 | F41: 1038 | G41: 77.33 | H41: 82.42
A42: 39 | B42: 初中 | C42: 英语 | E42: 87 | F42: 1039 | G42: 71.17 | H42: 79.09
A43: 40 | B43: 初中 | C43: 英语 | E43: 87 | F43: 1040 | G43: 78.33 | H43: 82.67
A44: 41 | B44: 初中 | C44: 英语 | E44: 85 | F44: 1041 | G44: 80.33 | H44: 82.67
A45: 42 | B45: 初中 | C45: 英语 | E45: 84.5 | F45: 1042 | G45: 79.50 | H45: 82.00
A46: 43 | B46: 初中 | C46: 英语 | E46: 84.5 | F46: 1043 | G46: 79.50 | H46: 82.00
A47: 44 | B47: 初中 | C47: 英语 | E47: 84.5 | F47: 1044 | G47: 75.50 | H47: 80.00
A48: 45 | B48: 初中 | C48: 英语 | E48: 84.5 | F48: 1045 | G48: 85.67 | H48: 85.09 | I48: 是
A49: 46 | B49: 初中 | C49: 英语 | E49: 83.5 | F49: 1046 | G49: 78.33 | H49: 80.92
A50: 47 | B50: 初中 | C50: 英语 | E50: 83.5 | F50: 1047 | G50: 74.00 | H50: 78.75
A51: 48 | B51: 初中 | C51: 英语 | E51: 83 | F51: 1048 | G51: 75.67 | H51: 79.34
A52: 49 | B52: 初中 | C52: 英语 | E52: 83 | F52: 1049 | G52: 78.50 | H52: 80.75
A53: 50 | B53: 初中 | C53: 英语 | E53: 83 | F53: 1050 | G53: 88.00 | H53: 85.50 | I53: 是
A54: 51 | B54: 初中 | C54: 英语 | E54: 83 | F54: 1051 | G54: 72.67 | H54: 77.84
A55: 52 | B55: 初中 | C55: 英语 | E55: 82.5 | F55: 1052 | G55: 86.00 | H55: 84.25
A56: 53 | B56: 初中 | C56: 英语 | E56: 82.5 | F56: 1053 | G56: 74.83 | H56: 78.67
A57: 54 | B57: 初中 | C57: 英语 | E57: 82 | F57: 1054 | G57: 86.67 | H57: 84.34 | I57: 是
A58: 55 | B58: 初中 | C58: 物理 | E58: 83 | F58: 1055 | G58: 84.83 | H58: 83.92 | I58: 是
A59: 56 | B59: 初中 | C59: 物理 | E59: 80 | F59: 1056 | G59: 79.87 | H59: 79.94 | I59: 是
A60: 57 | B60: 初中 | C60: 物理 | E60: 77.5 | F60: 1057 | G60: 87.90 | H60: 82.70 | I60: 是
A61: 58 | B61: 初中 | C61: 物理 | E61: 76.5 | F61: 1058 | G61: 80.37 | H61: 78.44
A62: 59 | B62: 初中 | C62: 物理 | E62: 75.5 | F62: 1059 | G62: 84.13 | H62: 79.82 | I62: 是
A63: 60 | B63: 初中 | C63: 物理 | E63: 75 | F63: 1060 | G63: 90.93 | H63: 82.97 | I63: 是
A64: 61 | B64: 初中 | C64: 物理 | E64: 74 | F64: 1061 | G64: 84.50 | H64: 79.25
A65: 62 | B65: 初中 | C65: 物理 | E65: 72.5 | F65: 1062 | G65: 83.67 | H65: 78.09
A66: 63 | B66: 初中 | C66: 物理 | E66: 72 | F66: 1063 | G66: 83.47 | H66: 77.74
A67: 64 | B67: 初中 | C67: 物理 | E67: 72 | F67: 1064 | G67: 80.80 | H67: 76.40
A68: 65 | B68: 初中 | C68: 物理 | E68: 72 | F68: 1065 | G68: 85.40 | H68: 78.70
A69: 66 | B69: 初中 | C69: 物理 | E69: 71.5 | F69: 1066 | G69: 缺考 | H69: =ROUND((E69*0.5),2) -> 35.75
A70: 67 | B70: 初中 | C70: 物理 | E70: 71.5 | F70: 1067 | G70: 88.67 | H70: =ROUND((E70*0.5+G70*0.5),2) -> 80.09 | I70: 是
A71: 68 | B71: 初中 | C71: 物理 | E71: 70.5 | F71: 1068 | G71: 83.67 | H71: =ROUND((E71*0.5+G71*0.5),2) -> 77.09
A72: 69 | B72: 初中 | C72: 物理 | E72: 70.5 | F72: 1069 | G72: 85.47 | H72: =ROUND((E72*0.5+G72*0.5),2) -> 77.99
A73: 70 | B73: 初中 | C73: 物理 | E73: 70 | F73: 1070 | G73: 缺考 | H73: =ROUND((E73*0.5),2) -> 35.00
A74: 71 | B74: 初中 | C74: 物理 | E74: 70 | F74: 1071 | G74: 81.60 | H74: =ROUND((E74*0.5+G74*0.5),2) -> 75.80
A75: 72 | B75: 初中 | C75: 物理 | E75: 70 | F75: 1072 | G75: 缺考 | H75: =ROUND((E75*0.5),2) -> 35.00
A76: 73 | B76: 初中 | C76: 化学 | E76: 85 | F76: 1073 | G76: 89.00 | H76: =ROUND((E76*0.5+G76*0.5),2) -> 87.00 | I76: 是
A77: 74 | B77: 初中 | C77: 化学 | E77: 79 | F77: 1074 | G77: 76.67 | H77: 77.84
A78: 75 | B78: 初中 | C78: 化学 | E78: 78 | F78: 1075 | G78: 83.67 | H78: 80.84
A79: 76 | B79: 初中 | C79: 化学 | E79: 77 | F79: 1076 | G79: 85.00 | H79: 81.00 | I79: 是
A80: 77 | B80: 初中 | C80: 化学 | E80: 77 | F80: 1077 | G80: 80.33 | H80: 78.67
A81: 78 | B81: 初中 | C81: 化学 | E81: 76.5 | F81: 1078 | G81: 82.17 | H81: 79.34
A82: 79 | B82: 初中 | C82: 生物 | E82: 88 | F82: 1079 | G82: 87.33 | H82: 87.67
A83: 80 | B83: 初中 | C83: 生物 | E83: 85.5 | F83: 1080 | G83: 86.33 | H83: 85.92
A84: 81 | B84: 初中 | C84: 生物 | E84: 84.5 | F84: 1081 | G84: 91.67 | H84: 88.09 | I84: 是
A85: 82 | B85: 初中 | C85: 道德与法治 | E85: 69.5 | F85: 1082 | G85: 85.33 | H85: 77.42 | I85: 是
A86: 83 | B86: 初中 | C86: 道德与法治 | E86: 66.5 | F86: 1083 | G86: 85.00 | H86: 75.75
A87: 84 | B87: 初中 | C87: 道德与法治 | E87: 65.5 | F87: 1084 | G87: 81.00 | H87: 73.25
A88: 85 | B88: 初中 | C88: 历史 | E88: 74.5 | F88: 1085 | G88: 90.33 | H88: 82.42
A89: 86 | B89: 初中 | C89: 历史 | E89: 70.5 | F89: 1086 | G89: 95.33 | H89: 82.92 | I89: 是
A90: 87 | B90: 初中 | C90: 历史 | E90: 66 | F90: 1087 | G90: 89.67 | H90: 77.84
A91: 88 | B91: 初中 | C91: 地理 | E91: 84 | F91: 1088 | G91: 85.33 | H91: 84.67 | I91: 是
A92: 89 | B92: 初中 | C92: 地理 | E92: 79 | F92: 1089 | G92: 78.33 | H92: 78.67
A93: 90 | B93: 初中 | C93: 地理 | E93: 78.5 | F93: 1090 | G93: 86.67 | H93: 82.59
A94: 91 | B94: 初中 | C94: 地理 | E94: 78.5 | F94: 1091 | G94: 90.00 | H94: 84.25 | I94: 是
A95: 92 | B95: 初中 | C95: 地理 | E95: 78 | F95: 1092 | G95: 73.67 | H95: 75.84
A96: 93 | B96: 初中 | C96: 地理 | E96: 77.5 | F96: 1093 | G96: 79.00 | H96: 78.25
A97: 94 | B97: 初中 | C97: 地理 | E97: 77.5 | F97: 1094 | G97: 77.00 | H97: 77.25
A98: 95 | B98: 初中 | C98: 艺术（音乐） | E98: 88.5 | F98: 1095 | G98: 75.83 | H98: 82.17 | I98: 是
A99: 96 | B99: 初中 | C99: 艺术（音乐） | E99: 87 | F99: 1096 | G99: 67.23 | H99: 77.12 | I99: 是
A100: 97 | B100: 初中 | C100: 艺术（音乐） | E100: 86 | F100: 1097 | G100: 79.67 | H100: 82.84 | I100: 是
A101: 98 | B101: 初中 | C101: 艺术（音乐） | E101: 79.5 | F101: 1098 | G101: 70.33 | H101: 74.92
A102: 99 | B102: 初中 | C102: 艺术（音乐） | E102: 78 | F102: 1099 | G102: 74.67 | H102: 76.34
A103: 100 | B103: 初中 | C103: 艺术（音乐） | E103: 73 | F103: 1100 | G103: 71.33 | H103: 72.17
A104: 101 | B104: 初中 | C104: 艺术（音乐） | E104: 73 | F104: 1101 | G104: 缺考 | H104: =ROUND((E104*0.5),2) -> 36.50
A105: 102 | B105: 初中 | C105: 艺术（音乐） | E105: 72.5 | F105: 1102 | G105: 缺考 | H105: =ROUND((E105*0.5),2) -> 36.25
A106: 103 | B106: 初中 | C106: 艺术（音乐） | E106: 72 | F106: 1103 | G106: 74.50 | H106: =ROUND((E106*0.5+G106*0.5),2) -> 73.25
A107: 104 | B107: 初中 | C107: 体育与健康 | E107: 49 | F107: 1104 | G107: 86.33 | H107: 67.67 | I107: 是
A108: 105 | B108: 初中 | C108: 体育与健康 | E108: 48.5 | F108: 1105 | G108: 84.00 | H108: 66.25
A109: 106 | B109: 初中 | C109: 体育与健康 | E109: 48.5 | F109: 1106 | G109: 83.33 | H109: 65.92
A110: 107 | B110: 初中 | C110: 心理健康 | E110: 79.5 | F110: 1107 | G110: 85.20 | H110: 82.35 | I110: 是
A111: 108 | B111: 初中 | C111: 心理健康 | E111: 74 | F111: 1108 | G111: 84.77 | H111: 79.39 | I111: 是
A112: 109 | B112: 初中 | C112: 心理健康 | E112: 72.5 | F112: 1109 | G112: 83.87 | H112: 78.19 | I112: 是
A113: 110 | B113: 初中 | C113: 心理健康 | E113: 72 | F113: 1110 | G113: 84.23 | H113: 78.12 | I113: 是
A114: 111 | B114: 初中 | C114: 心理健康 | E114: 71.5 | F114: 1111 | G114: 85.03 | H114: 78.27 | I114: 是
A115: 112 | B115: 初中 | C115: 心理健康 | E115: 70.5 | F115: 1112 | G115: 81.73 | H115: 76.12
A116: 113 | B116: 初中 | C116: 心理健康 | E116: 70 | F116: 1113 | G116: 83.60 | H116: 76.80
A117: 114 | B117: 初中 | C117: 心理健康 | E117: 70 | F117: 1114 | G117: 缺考 | H117: =ROUND((E117*0.5),2) -> 35.00
A118: 115 | B118: 初中 | C118: 心理健康 | E118: 69 | F118: 1115 | G118: 83.50 | H118: =ROUND((E118*0.5+G118*0.5),2) -> 76.25
A119: 116 | B119: 初中 | C119: 心理健康 | E119: 68 | F119: 1116 | G119: 86.13 | H119: =ROUND((E119*0.5+G119*0.5),2) -> 77.07
A120: 117 | B120: 初中 | C120: 心理健康 | E120: 67.5 | F120: 1117 | G120: 78.23 | H120: =ROUND((E120*0.5+G120*0.5),2) -> 72.87
A121: 118 | B121: 初中 | C121: 心理健康 | E121: 67.5 | F121: 1118 | G121: 82.57 | H121: =ROUND((E121*0.5+G121*0.5),2) -> 75.04
A122: 119 | B122: 初中 | C122: 心理健康 | E122: 67 | F122: 1119 | G122: 79.43 | H122: =ROUND((E122*0.5+G122*0.5),2) -> 73.22
A123: 120 | B123: 初中 | C123: 心理健康 | E123: 67 | F123: 1120 | G123: 缺考 | H123: =ROUND((E123*0.5),2) -> 33.50
A124: 121 | B124: 初中 | C124: 心理健康 | E124: 67 | F124: 1121 | G124: 81.10 | H124: =ROUND((E124*0.5+G124*0.5),2) -> 74.05
A125: 122 | B125: 小学 | C125: 语文 | D125: 241301 | E125: 81 | F125: 1122 | G125: 81.17 | H125: 81.09 | I125: 是
A126: 123 | B126: 小学 | C126: 语文 | D126: 241301 | E126: 80 | F126: 1123 | G126: 88.00 | H126: 84.00 | I126: 是
A127: 124 | B127: 小学 | C127: 语文 | D127: 241301 | E127: 80 | F127: 1124 | G127: 87.67 | H127: 83.84 | I127: 是
A128: 125 | B128: 小学 | C128: 语文 | D128: 241301 | E128: 79 | F128: 1125 | G128: 84.93 | H128: 81.97 | I128: 是
A129: 126 | B129: 小学 | C129: 语文 | D129: 241301 | E129: 78 | F129: 1126 | G129: 76.33 | H129: 77.17
A130: 127 | B130: 小学 | C130: 语文 | D130: 241301 | E130: 78 | F130: 1127 | G130: 81.43 | H130: 79.72 | I130: 是
A131: 128 | B131: 小学 | C131: 语文 | D131: 241301 | E131: 77.5 | F131: 1128 | G131: 86.17 | H131: 81.84 | I131: 是
A132: 129 | B132: 小学 | C132: 语文 | D132: 241301 | E132: 77 | F132: 1129 | G132: 82.17 | H132: 79.59
A133: 130 | B133: 小学 | C133: 语文 | D133: 241301 | E133: 75.5 | F133: 1130 | G133: 84.10 | H133: 79.80 | I133: 是
A134: 131 | B134: 小学 | C134: 语文 | D134: 241301 | E134: 75 | F134: 1131 | G134: 82.17 | H134: 78.59
A135: 132 | B135: 小学 | C135: 语文 | D135: 241301 | E135: 74.5 | F135: 1132 | G135: 79.73 | H135: 77.12
A136: 133 | B136: 小学 | C136: 语文 | D136: 241301 | E136: 74.5 | F136: 1133 | G136: 88.00 | H136: 81.25 | I136: 是
A137: 134 | B137: 小学 | C137: 语文 | D137: 241301 | E137: 74.5 | F137: 1134 | G137: 80.20 | H137: 77.35
A138: 135 | B138: 小学 | C138: 语文 | D138: 241301 | E138: 73 | F138: 1135 | G138: 82.07 | H138: 77.54
A139: 136 | B139: 小学 | C139: 语文 | D139: 241301 | E139: 73 | F139: 1136 | G139: 77.50 | H139: 75.25
A140: 137 | B140: 小学 | C140: 语文 | D140: 241301 | E140: 72.5 | F140: 1137 | G140: 87.00 | H140: 79.75 | I140: 是
A141: 138 | B141: 小学 | C141: 语文 | D141: 241301 | E141: 72 | F141: 1138 | G141: 79.17 | H141: 75.59
A142: 139 | B142: 小学 | C142: 语文 | D142: 241301 | E142: 71.5 | F142: 1139 | G142: 82.57 | H142: 77.04
A143: 140 | B143: 小学 | C143: 语文 | D143: 241301 | E143: 70.5 | F143: 1140 | G143: 91.50 | H143: 81.00 | I143: 是
A144: 141 | B144: 小学 | C144: 语文 | D144: 241301 | E144: 70.5 | F144: 1141 | G144: 75.00 | H144: 72.75
A145: 142 | B145: 小学 | C145: 语文 | D145: 241301 | E145: 70 | F145: 1142 | G145: 缺考 | H145: =ROUND((E145*0.5),2) -> 35.00
A146: 143 | B146: 小学 | C146: 语文 | D146: 241301 | E146: 69.5 | F146: 1143 | G146: 77.17 | H146: =ROUND((E146*0.5+G146*0.5),2) -> 73.34
A147: 144 | B147: 小学 | C147: 语文 | D147: 241301 | E147: 69.5 | F147: 1144 | G147: 79.83 | H147: =ROUND((E147*0.5+G147*0.5),2) -> 74.67
A148: 145 | B148: 小学 | C148: 语文 | D148: 241301 | E148: 69 | F148: 1145 | G148: 81.73 | H148: =ROUND((E148*0.5+G148*0.5),2) -> 75.37
A149: 146 | B149: 小学 | C149: 语文 | D149: 241301 | E149: 69 | F149: 1146 | G149: 缺考 | H149: =ROUND((E149*0.5),2) -> 34.50
A150: 147 | B150: 小学 | C150: 语文 | D150: 241301 | E150: 68.5 | F150: 1147 | G150: 85.50 | H150: =ROUND((E150*0.5+G150*0.5),2) -> 77.00
A151: 148 | B151: 小学 | C151: 语文 | D151: 241301 | E151: 68.5 | F151: 1148 | G151: 83.50 | H151: =ROUND((E151*0.5+G151*0.5),2) -> 76.00
A152: 149 | B152: 小学 | C152: 语文 | D152: 241301 | E152: 68.5 | F152: 1149 | G152: 82.73 | H152: =ROUND((E152*0.5+G152*0.5),2) -> 75.62
A153: 150 | B153: 小学 | C153: 语文 | D153: 241301 | E153: 68 | F153: 1150 | G153: 78.63 | H153: =ROUND((E153*0.5+G153*0.5),2) -> 73.32
A154: 151 | B154: 小学 | C154: 语文 | D154: 241301 | E154: 68 | F154: 1151 | G154: 缺考 | H154: =ROUND((E154*0.5),2) -> 34.00
A155: 152 | B155: 小学 | C155: 语文 | D155: 241302 | E155: 80.5 | F155: 1152 | G155: 74.00 | H155: =ROUND((E155*0.5+G155*0.5),2) -> 77.25 | I155: 是
A156: 153 | B156: 小学 | C156: 语文 | D156: 241302 | E156: 77.5 | F156: 1153 | G156: 58.00 | H156: 67.75
A157: 154 | B157: 小学 | C157: 语文 | D157: 241302 | E157: 75 | F157: 1154 | G157: 81.67 | H157: 78.34 | I157: 是
A158: 155 | B158: 小学 | C158: 语文 | D158: 241302 | E158: 75 | F158: 1155 | G158: 58.83 | H158: 66.92
A159: 156 | B159: 小学 | C159: 语文 | D159: 241302 | E159: 75 | F159: 1156 | G159: 79.50 | H159: 77.25 | I159: 是
A160: 157 | B160: 小学 | C160: 语文 | D160: 241302 | E160: 74.5 | F160: 1157 | G160: 74.50 | H160: 74.50 | I160: 是
A161: 158 | B161: 小学 | C161: 语文 | D161: 241302 | E161: 74 | F161: 1158 | G161: 78.83 | H161: 76.42 | I161: 是
A162: 159 | B162: 小学 | C162: 语文 | D162: 241302 | E162: 74 | F162: 1159 | G162: 75.17 | H162: 74.59 | I162: 是
A163: 160 | B163: 小学 | C163: 语文 | D163: 241302 | E163: 73.5 | F163: 1160 | G163: 缺考 | H163: =ROUND((E163*0.5),2) -> 36.75
A164: 161 | B164: 小学 | C164: 语文 | D164: 241302 | E164: 73 | F164: 1161 | G164: 66.50 | H164: =ROUND((E164*0.5+G164*0.5),2) -> 69.75
A165: 162 | B165: 小学 | C165: 语文 | D165: 241302 | E165: 73 | F165: 1162 | G165: 61.50 | H165: 67.25
A166: 163 | B166: 小学 | C166: 语文 | D166: 241302 | E166: 73 | F166: 1163 | G166: 77.00 | H166: 75.00 | I166: 是
A167: 164 | B167: 小学 | C167: 语文 | D167: 241302 | E167: 73 | F167: 1164 | G167: 74.43 | H167: 73.72 | I167: 是
A168: 165 | B168: 小学 | C168: 语文 | D168: 241302 | E168: 72 | F168: 1165 | G168: 43.50 | H168: 57.75
A169: 166 | B169: 小学 | C169: 语文 | D169: 241302 | E169: 71.5 | F169: 1166 | G169: 59.83 | H169: 65.67
A170: 167 | B170: 小学 | C170: 语文 | D170: 241302 | E170: 71 | F170: 1167 | G170: 67.83 | H170: 69.42
A171: 168 | B171: 小学 | C171: 语文 | D171: 241302 | E171: 70.5 | F171: 1168 | G171: 61.17 | H171: 65.84
A172: 169 | B172: 小学 | C172: 语文 | D172: 241302 | E172: 70.5 | F172: 1169 | G172: 77.67 | H172: 74.09 | I172: 是
A173: 170 | B173: 小学 | C173: 语文 | D173: 241302 | E173: 70 | F173: 1170 | G173: 61.83 | H173: 65.92
A174: 171 | B174: 小学 | C174: 语文 | D174: 241302 | E174: 70 | F174: 1171 | G174: 54.67 | H174: 62.34
A175: 172 | B175: 小学 | C175: 语文 | D175: 241302 | E175: 69.5 | F175: 1172 | G175: 60.67 | H175: 65.09
A176: 173 | B176: 小学 | C176: 语文 | D176: 241302 | E176: 69.5 | F176: 1173 | G176: 54.67 | H176: 62.09
A177: 174 | B177: 小学 | C177: 语文 | D177: 241302 | E177: 69.5 | F177: 1174 | G177: 缺考 | H177: =ROUND((E177*0.5),2) -> 34.75
A178: 175 | B178: 小学 | C178: 语文 | D178: 241302 | E178: 69 | F178: 1175 | G178: 68.67 | H178: =ROUND((E178*0.5+G178*0.5),2) -> 68.84
A179: 176 | B179: 小学 | C179: 语文 | D179: 241302 | E179: 68.5 | F179: 1176 | G179: 72.17 | H179: =ROUND((E179*0.5+G179*0.5),2) -> 70.34 | I179: 是
A180: 177 | B180: 小学 | C180: 语文 | D180: 241302 | E180: 68.5 | F180: 1177 | G180: 71.50 | H180: =ROUND((E180*0.5+G180*0.5),2) -> 70.00
A181: 178 | B181: 小学 | C181: 语文 | D181: 241302 | E181: 68.5 | F181: 1178 | G181: 63.67 | H181: =ROUND((E181*0.5+G181*0.5),2) -> 66.09
A182: 179 | B182: 小学 | C182: 语文 | D182: 241302 | E182: 68.5 | F182: 1179 | G182: 缺考 | H182: =ROUND((E182*0.5),2) -> 34.25
A183: 180 | B183: 小学 | C183: 语文 | D183: 241302 | E183: 68 | F183: 1180 | G183: 59.33 | H183: =ROUND((E183*0.5+G183*0.5),2) -> 63.67
A184: 181 | B184: 小学 | C184: 语文 | D184: 241302 | E184: 68 | F184: 1181 | G184: 67.50 | H184: 67.75
A185: 182 | B185: 小学 | C185: 语文 | D185: 241303 | E185: 84.5 | F185: 1182 | G185: 82.33 | H185: 83.42 | I185: 是
A186: 183 | B186: 小学 | C186: 语文 | D186: 241303 | E186: 80 | F186: 1183 | G186: 85.33 | H186: 82.67 | I186: 是
A187: 184 | B187: 小学 | C187: 语文 | D187: 241303 | E187: 76 | F187: 1184 | G187: 87.00 | H187: 81.50 | I187: 是
A188: 185 | B188: 小学 | C188: 语文 | D188: 241303 | E188: 76 | F188: 1185 | G188: 83.00 | H188: 79.50
A189: 186 | B189: 小学 | C189: 语文 | D189: 241303 | E189: 76 | F189: 1186 | G189: 88.67 | H189: 82.34 | I189: 是
A190: 187 | B190: 小学 | C190: 语文 | D190: 241303 | E190: 75.5 | F190: 1187 | G190: 87.33 | H190: 81.42 | I190: 是
A191: 188 | B191: 小学 | C191: 语文 | D191: 241303 | E191: 75 | F191: 1188 | G191: 缺考 | H191: =ROUND((E191*0.5),2) -> 37.50
A192: 189 | B192: 小学 | C192: 语文 | D192: 241303 | E192: 75 | F192: 1189 | G192: 73.33 | H192: =ROUND((E192*0.5+G192*0.5),2) -> 74.17
A193: 190 | B193: 小学 | C193: 语文 | D193: 241303 | E193: 74.5 | F193: 1190 | G193: 77.33 | H193: 75.92
A194: 191 | B194: 小学 | C194: 语文 | D194: 241303 | E194: 74.5 | F194: 1191 | G194: 76.33 | H194: 75.42
A195: 192 | B195: 小学 | C195: 语文 | D195: 241303 | E195: 74.5 | F195: 1192 | G195: 70.67 | H195: 72.59
A196: 193 | B196: 小学 | C196: 语文 | D196: 241303 | E196: 74 | F196: 1193 | G196: 71.67 | H196: 72.84
A197: 194 | B197: 小学 | C197: 语文 | D197: 241303 | E197: 74 | F197: 1194 | G197: 91.00 | H197: 82.50 | I197: 是
A198: 195 | B198: 小学 | C198: 语文 | D198: 241303 | E198: 73 | F198: 1195 | G198: 87.00 | H198: 80.00 | I198: 是
A199: 196 | B199: 小学 | C199: 语文 | D199: 241303 | E199: 73 | F199: 1196 | G199: 86.67 | H199: 79.84 | I199: 是
A200: 197 | B200: 小学 | C200: 语文 | D200: 241303 | E200: 72.5 | F200: 1197 | G200: 74.00 | H200: 73.25
... 417 more rows
